bitfinex/quotes_BTCUSD_20250803
["timestamp","ask_amount","ask_price","bid_price","bid_amount"]
[1754206128260,5.05,113950.0,113940.0,0.90198726]
[1754206128788,5.05,113950.0,113940.0,0.89798726]
[1754206129449,5.05,113950.0,113940.0,0.90298726]
[1754206131319,0.03492591,113950.0,113940.0,0.90298726]
[1754206131525,5.05,113950.0,113940.0,0.90298726]
[1754206136428,0.03630137,113950.0,113940.0,0.90298726]
[1754206136952,5.05,113950.0,113940.0,0.90298726]
[1754206138699,5.05,113950.0,113940.0,0.205763]
[1754206138858,5.05,113950.0,113940.0,0.90298726]
[1754206141502,5.08502237,113950.0,113940.0,0.90298726]
[1754206141717,0.03502237,113950.0,113940.0,0.90298726]
[1754206142134,5.05,113950.0,113940.0,0.90298726]
[1754206145306,5.08570117,113950.0,113940.0,0.90298726]
[1754206145516,0.03570117,113950.0,113940.0,0.90298726]
[1754206145712,0.69730799,113960.0,113940.0,0.90298726]
[1754206145919,6.09555255,113960.0,113950.0,0.161]
[1754206147085,5.39832829,113960.0,113950.0,0.161]
[1754206147301,6.09555255,113960.0,113950.0,0.161]
[1754206147758,5.39832829,113960.0,113950.0,0.173]
[1754206149723,6.09555255,113960.0,113950.0,0.173]
[1754206150142,5.39832829,113960.0,113950.0,0.173]
[1754206150367,6.13073906,113960.0,113950.0,0.173]
[1754206150778,6.13073906,113960.0,113950.0,0.17624]
[1754206153272,5.4335148,113960.0,113950.0,0.17624]
[1754206153659,6.13073906,113960.0,113950.0,0.17624]
[1754206154816,6.13073906,113960.0,113950.0,0.173]
[1754206155049,5.79065533,113960.0,113950.0,0.173]
[1754206156329,5.09343107,113960.0,113950.0,0.173]
[1754206156526,5.79065533,113960.0,113950.0,0.173]
[1754206157361,5.09343107,113960.0,113950.0,0.173]
[1754206157623,5.79065533,113960.0,113950.0,0.173]
[1754206158258,5.79065533,113960.0,113950.0,0.17624]
[1754206162021,5.09343107,113960.0,113950.0,0.17624]
[1754206162213,5.79065533,113960.0,113950.0,0.17624]
[1754206162910,5.09343107,113960.0,113950.0,0.17624]
[1754206163114,5.79065533,113960.0,113950.0,0.17624]
[1754206173641,5.79065533,113960.0,113950.0,0.17822]
[1754206181817,5.79065487,113960.0,113950.0,0.17822]
[1754206192575,5.09343061,113960.0,113950.0,0.17822]
[1754206192777,5.79065487,113960.0,113950.0,0.17822]
[1754206201350,5.79065529,113960.0,113950.0,0.17822]
[1754206203654,5.09343103,113960.0,113950.0,0.17822]
[1754206203893,5.79065529,113960.0,113950.0,0.17822]
[1754206205436,5.09343103,113960.0,113950.0,0.17822]
[1754206205645,5.79065529,113960.0,113950.0,0.17822]
[1754206205853,5.09343103,113960.0,113950.0,0.17822]
[1754206206059,5.79065529,113960.0,113950.0,0.17822]
[1754206210296,5.57801229,113960.0,113950.0,0.17822]
[1754206210711,4.84560152,113960.0,113950.0,0.17822]
[1754206210910,5.54282578,113960.0,113950.0,0.17822]
[1754206216180,5.5792912,113960.0,113950.0,0.17822]
[1754206216400,4.88206694,113960.0,113950.0,0.17822]
[1754206216620,5.5792912,113960.0,113950.0,0.17822]
[1754206218118,5.5792912,113960.0,113950.0,0.173]
[1754206218819,5.57929128,113960.0,113950.0,0.04032]
[1754206219019,5.57929128,113960.0,113950.0,0.14464]
[1754206219630,5.57929128,113960.0,113950.0,0.17386]
[1754206221773,5.57929128,113960.0,113950.0,0.04122]
[1754206221921,5.57929128,113960.0,113950.0,0.17386]
[1754206223365,5.57929128,113960.0,113950.0,0.17684]
[1754206224616,5.57104668,113960.0,113950.0,0.17684]
[1754206224834,5.57929052,113960.0,113950.0,0.17684]
[1754206225451,4.88206626,113960.0,113950.0,0.17896]
[1754206225668,4.88206626,113960.0,113950.0,0.87618426]
[1754206225809,4.88206626,113960.0,113950.0,0.17896]
[1754206227529,4.88206632,113960.0,113950.0,0.17896]
[1754206232732,5.57929058,113960.0,113950.0,0.17896]
[1754206233429,4.88206632,113960.0,113950.0,0.17896]
[1754206233627,5.57929058,113960.0,113950.0,0.17896]
[1754206234239,4.88206632,113960.0,113950.0,0.17896]
[1754206234457,5.57929058,113960.0,113950.0,0.17896]
[1754206234660,5.57929058,113960.0,113950.0,0.205353]
[1754206237759,4.88206632,113960.0,113950.0,0.205353]
[1754206238204,5.57929058,113960.0,113950.0,0.205353]
[1754206239750,4.88206632,113960.0,113950.0,0.205353]
[1754206242624,5.22206632,113960.0,113950.0,0.205353]
[1754206244911,5.22206588,113960.0,113950.0,0.205353]
[1754206250298,5.91929014,113960.0,113950.0,0.205353]
[1754206252759,5.22206588,113960.0,113950.0,0.205353]
[1754206256461,5.91929014,113960.0,113950.0,0.205353]
[1754206257948,5.22206588,113960.0,113950.0,0.205353]
[1754206263660,5.91929014,113960.0,113950.0,0.205353]
[1754206265179,5.22206588,113960.0,113950.0,0.205353]
[1754206268050,5.91929014,113960.0,113950.0,0.200253]
[1754206268680,5.22206588,113960.0,113950.0,0.200253]
[1754206268928,5.91929014,113960.0,113950.0,0.200253]
[1754206270903,5.22206735,113960.0,113950.0,0.200253]
[1754206271179,5.91929161,113960.0,113950.0,0.200253]
[1754206271813,5.91929161,113960.0,113950.0,0.067613]
[1754206271980,5.91929161,113960.0,113950.0,0.200493]
[1754206272222,5.91929161,113960.0,113950.0,0.038393]
[1754206272421,5.91929161,113960.0,113950.0,0.14496]
[1754206272779,5.91104668,113960.0,113950.0,0.14496]
[1754206272988,5.91929175,113960.0,113950.0,0.14496]
[1754206274301,5.91929175,113960.0,113950.0,0.17211]
[1754206275199,5.91929175,113960.0,113950.0,0.17517]
[1754206275412,5.91929175,113960.0,113950.0,0.17211]
[1754206276957,5.91929175,113960.0,113950.0,0.03915]
[1754206277175,5.91929175,113960.0,113950.0,0.17211]
[1754206284764,5.22206749,113960.0,113950.0,0.17211]
[1754206284985,5.91929175,113960.0,113950.0,0.03915]
[1754206285205,5.91929175,113960.0,113950.0,0.17211]
[1754206285630,5.91929175,113960.0,113950.0,0.17517]
[1754206286735,5.22206749,113960.0,113950.0,0.17517]
[1754206286934,5.91929175,113960.0,113950.0,0.17517]
[1754206288710,5.22206749,113960.0,113950.0,0.1772]
[1754206288934,5.91929175,113960.0,113950.0,0.1772]
[1754206289144,5.22206749,113960.0,113950.0,0.87442426]
[1754206290980,0.38471049,113960.0,113950.0,0.87442426]
[1754206291358,0.38471049,113960.0,113950.0,0.90081726]
[1754206292516,0.38471049,113960.0,113950.0,0.87442426]
[1754206293558,0.18255819,113960.0,113950.0,0.87442426]
[1754206293768,0.00824331,113960.0,113950.0,0.87442426]
[1754206294988,0.00824331,113960.0,113950.0,0.1772]
[1754206295202,0.00824331,113960.0,113950.0,0.87442426]
[1754206296872,0.03886573,113960.0,113950.0,0.87442426]
[1754206297210,0.00824331,113960.0,113950.0,0.87442426]
[1754206297521,0.00824331,113960.0,113950.0,0.1772]
[1754206299801,0.73513721,113960.0,113950.0,0.1772]
[1754206300166,0.70546757,113960.0,113950.0,0.1772]
[1754206300730,0.00824331,113960.0,113950.0,0.1772]
[1754206301188,0.70546757,113960.0,113950.0,0.1772]
[1754206302325,0.00824331,113960.0,113950.0,0.1772]
[1754206302993,0.03912669,113960.0,113950.0,0.1772]
[1754206303195,0.00824331,113960.0,113950.0,0.1772]
[1754206303404,0.00824331,113960.0,113950.0,0.87442426]
[1754206304035,0.00824331,113960.0,113950.0,0.1772]
[1754206306159,0.03877167,113960.0,113950.0,0.1772]
[1754206306769,0.03877167,113960.0,113950.0,0.87442426]
[1754206308130,0.03877167,113960.0,113950.0,0.1772]
[1754206309604,0.73599593,113960.0,113950.0,0.1772]
[1754206310367,0.73599628,113960.0,113950.0,0.1772]
[1754206310710,0.03877202,113960.0,113950.0,0.1772]
[1754206310923,0.73599628,113960.0,113950.0,0.1772]
[1754206311648,0.03877202,113960.0,113950.0,0.1772]
[1754206311852,0.73599628,113960.0,113950.0,0.1772]
[1754206313201,0.03877202,113960.0,113950.0,0.1772]
[1754206313416,0.73599628,113960.0,113950.0,0.1772]
[1754206313648,0.03877202,113960.0,113950.0,0.1772]
[1754206318836,0.05251062,113960.0,113950.0,0.1772]
[1754206319054,0.05251194,113960.0,113950.0,0.1772]
[1754206321665,0.05251194,113960.0,113950.0,0.87442426]
[1754206324201,0.05251194,113960.0,113950.0,0.1772]
[1754206324602,0.05251194,113960.0,113950.0,0.90081626]
[1754206326888,0.05251194,113960.0,113950.0,0.203592]
[1754206327098,0.05251194,113960.0,113950.0,0.90081626]
[1754206330814,0.03877334,113960.0,113950.0,0.90081626]
[1754206331024,0.03877098,113960.0,113950.0,0.90081626]
[1754206331231,0.03877098,113960.0,113950.0,0.203592]
[1754206331442,0.03877098,113960.0,113950.0,0.90081626]
[1754206332089,0.03877098,113960.0,113950.0,0.203592]
[1754206333543,0.05250943,113960.0,113950.0,0.203592]
[1754206337747,4.837357,113960.0,113950.0,0.203592]
[1754206338074,0.0137389,113960.0,113950.0,0.203592]
[1754206338706,0.04901559,113960.0,113950.0,0.203592]
[1754206338911,0.0137389,113960.0,113950.0,0.203592]
[1754206339241,0.0137389,113960.0,113950.0,0.90081626]
[1754206342031,0.05027305,113960.0,113950.0,0.90081626]
[1754206342785,0.05027305,113960.0,113950.0,0.203592]
[1754206343103,0.05027305,113960.0,113950.0,0.90081626]
[1754206346555,0.05027305,113960.0,113950.0,0.203592]
[1754206346766,0.05027305,113960.0,113950.0,0.90081626]
[1754206348498,0.05027305,113960.0,113950.0,0.203592]
[1754206348856,0.05027305,113960.0,113950.0,0.90081626]
[1754206350052,0.05027305,113960.0,113950.0,0.203592]
[1754206350261,0.05027305,113960.0,113950.0,0.90081626]
[1754206350598,0.03653415,113960.0,113950.0,0.90081626]
[1754206351007,4.837357,113960.0,113950.0,0.90081626]
[1754206351419,4.837357,113960.0,113950.0,0.203592]
[1754206351631,4.837357,113960.0,113950.0,0.90081626]
[1754206353480,0.01373834,113960.0,113950.0,0.90081626]
[1754206354062,0.0502855,113960.0,113950.0,0.90081626]
[1754206354491,0.01373834,113960.0,113950.0,0.90081626]
[1754206356549,0.01373834,113960.0,113950.0,0.203592]
[1754206356753,0.01373834,113960.0,113950.0,0.90081626]
[1754206356951,0.0489638,113960.0,113950.0,0.90081626]
[1754206357197,0.01373834,113960.0,113950.0,0.90081626]
[1754206360045,0.01373834,113960.0,113950.0,0.203592]
[1754206360255,0.01373834,113960.0,113950.0,0.90081626]
[1754206361696,0.05014262,113960.0,113950.0,0.90081626]
[1754206362097,0.05014262,113960.0,113950.0,0.203592]
[1754206362244,0.05014262,113960.0,113950.0,0.90081626]
[1754206364662,0.05014262,113960.0,113950.0,0.89681626]
[1754206365079,0.05014262,113960.0,113950.0,0.90181626]
[1754206365283,0.05014262,113960.0,113950.0,0.89381626]
[1754206365491,0.05014262,113960.0,113950.0,0.90281626]
[1754206374395,0.05014262,113960.0,113950.0,0.205592]
[1754206374603,0.05014262,113960.0,113950.0,0.90281626]
[1754206378823,0.03640428,113960.0,113950.0,0.90281626]
[1754206379026,1.03742426,113980.0,113950.0,0.90281626]
[1754206379262,4.837357,113970.0,113960.0,0.13388]
[1754206379478,0.00824396,113970.0,113960.0,0.16631]
[1754206381116,0.00824396,113970.0,113960.0,0.17031]
[1754206382912,0.00824396,113970.0,113960.0,0.17831]
[1754206383110,0.02198191,113970.0,113960.0,0.17831]
[1754206386589,0.05740313,113970.0,113960.0,0.17831]
[1754206395515,0.05740342,113970.0,113960.0,0.17831]
[1754206398358,0.05740343,113970.0,113960.0,0.17831]
[1754206401243,0.05740343,113970.0,113960.0,0.87553426]
[1754206401475,0.05740343,113970.0,113960.0,0.17831]
[1754206401681,0.75462769,113970.0,113960.0,0.17831]
[1754206401896,0.75462769,113970.0,113960.0,0.04247]
[1754206402112,0.84346525,113970.0,113960.0,0.14628]
[1754206402330,0.75462769,113970.0,113960.0,0.14628]
[1754206402529,0.75462769,113970.0,113960.0,0.17366]
[1754206402775,0.05740343,113970.0,113960.0,0.17675]
[1754206402996,0.05740343,113970.0,113960.0,0.17471]
[1754206403211,0.05740343,113970.0,113960.0,0.16671]
[1754206403439,0.05740343,113970.0,113960.0,0.16971]
[1754206403664,0.75462769,113970.0,113960.0,0.17671]
[1754206403920,0.00824426,113970.0,113960.0,0.17671]
[1754206404125,0.69722426,113970.0,113960.0,0.17671]
[1754206404309,0.71096267,113970.0,113960.0,0.17671]
[1754206404752,0.01373841,113970.0,113960.0,0.17671]
[1754206405928,0.71096267,113970.0,113960.0,0.17671]
[1754206409190,0.01373841,113970.0,113960.0,0.17671]
[1754206409605,0.71096267,113970.0,113960.0,0.17671]
[1754206416466,0.01373841,113970.0,113960.0,0.17671]
[1754206416696,0.71096267,113970.0,113960.0,0.17671]
[1754206418202,0.71096267,113970.0,113960.0,0.17475]
[1754206418496,0.71920488,113970.0,113960.0,0.17475]
[1754206421187,0.02198062,113970.0,113960.0,0.17475]
[1754206421371,0.02198062,113970.0,113960.0,0.17685]
[1754206421584,0.71920488,113970.0,113960.0,0.17685]
[1754206422201,0.02198062,113970.0,113960.0,0.17685]
[1754206422429,0.71920488,113970.0,113960.0,0.17685]
[1754206424695,0.02198062,113970.0,113960.0,0.17685]
[1754206429868,0.71920488,113970.0,113960.0,0.04047]
[1754206430076,0.71920488,113970.0,113960.0,0.17491]
[1754206431788,0.71920488,113970.0,113960.0,0.17701]
[1754206432319,0.71920488,113970.0,113960.0,0.14444]
[1754206432797,0.71920488,113970.0,113960.0,0.17108]
[1754206433030,0.71920488,113970.0,113960.0,0.14444]
[1754206433031,6.62062764,113970.0,113960.0,0.14444]
[1754206434082,6.62062764,113970.0,113960.0,0.14144]
[1754206434284,6.63807666,113970.0,113960.0,0.007]
[1754206434489,7.32156251,113970.0,113960.0,0.002]
[1754206434696,7.34796151,113970.0,113960.0,0.002]
[1754206434904,6.6672235,113970.0,113960.0,0.002]
[1754206435085,6.77504873,113970.0,113960.0,0.002]
[1754206435290,6.77504873,113970.0,113960.0,0.007]
[1754206435718,6.77504873,113970.0,113960.0,0.005]
[1754206435873,6.77504873,113970.0,113960.0,0.006]
[1754206437019,6.77504873,113970.0,113960.0,0.001]
[1754206437636,6.76980174,113970.0,113960.0,0.001]
[1754206437835,6.76980174,113970.0,113960.0,0.004]
[1754206438650,6.76978794,113970.0,113960.0,0.004]
[1754206440050,7.66144671,113970.0,113960.0,0.004]
[1754206440290,7.48596194,113970.0,113960.0,0.004]
[1754206440918,7.46947569,113970.0,113960.0,0.004]
[1754206441128,7.66141446,113970.0,113960.0,0.001]
[1754206441350,7.66141446,113970.0,113960.0,0.002]
[1754206441758,7.79585446,113970.0,113960.0,0.002]
[1754206441960,7.62036969,113970.0,113960.0,0.001]
[1754206443784,7.76271539,113970.0,113960.0,0.001]
[1754206445311,7.93820016,113970.0,113960.0,0.001]
[1754206446596,4.85480602,113950.0,113940.0,0.02454]
[1754206446827,6.39200295,113950.0,113940.0,0.02753]
[1754206447241,6.43214926,113950.0,113940.0,0.02753]
[1754206447610,6.45191743,113950.0,113940.0,0.02753]
[1754206448011,6.45191743,113950.0,113940.0,0.03153]
[1754206448223,5.05746891,113950.0,113940.0,0.03253]
[1754206448429,6.45191743,113950.0,113940.0,0.03253]
[1754206455658,6.43214926,113950.0,113940.0,0.03253]
[1754206455828,5.734925,113950.0,113940.0,0.03253]
[1754206457013,5.734925,113950.0,113940.0,0.03073138]
[1754206457333,5.734965,113950.0,113940.0,0.03285138]
[1754206459429,5.75139619,113950.0,113940.0,0.03285138]
[1754206460249,5.84023375,113950.0,113940.0,0.03285138]
[1754206463378,5.85920031,113950.0,113940.0,0.03285138]
[1754206464559,5.77036275,113950.0,113940.0,0.03285138]
[1754206466943,5.79720425,113950.0,113940.0,0.03285138]
[1754206469331,5.79722232,113950.0,113940.0,0.03285138]
[1754206470336,5.79722235,113950.0,113940.0,0.03285138]
[1754206471503,5.78348004,113950.0,113940.0,0.03285138]
[1754206471719,5.8723176,113950.0,113940.0,0.03285138]
[1754206471934,5.78348004,113950.0,113940.0,0.03285138]
[1754206472547,5.78354293,113950.0,113940.0,0.03285138]
[1754206472847,5.08631867,113950.0,113940.0,0.03285138]
[1754206473063,5.78354293,113950.0,113940.0,0.03285138]
[1754206474441,5.79728616,113950.0,113940.0,0.03285138]
[1754206474661,5.18889946,113950.0,113940.0,0.03285138]
[1754206474840,5.88612488,113950.0,113940.0,0.03285138]
[1754206475427,5.5802803,113950.0,113940.0,0.03285138]
[1754206477098,5.56653707,113950.0,113940.0,0.03285138]
[1754206477296,5.58398609,113950.0,113940.0,0.03285138]
[1754206478206,5.55924434,113950.0,113940.0,0.03285138]
[1754206478413,5.58398793,113950.0,113940.0,0.03285138]
[1754206480043,5.59773082,113950.0,113940.0,0.03285138]
[1754206481210,5.59773087,113950.0,113940.0,0.03285138]
[1754206482406,5.68656843,113950.0,113940.0,0.03285138]
[1754206483535,4.90050661,113950.0,113940.0,0.03285138]
[1754206483742,5.59773087,113950.0,113940.0,0.03285138]
[1754206484338,5.57876431,113950.0,113940.0,0.03285138]
[1754206484913,5.56502142,113950.0,113940.0,0.03285138]
[1754206485465,5.58402475,113950.0,113940.0,0.03285138]
[1754206487143,5.67286231,113950.0,113940.0,0.03285138]
[1754206487996,4.97563805,113950.0,113940.0,0.03285138]
[1754206488194,5.597767,113950.0,113940.0,0.03285138]
[1754206492816,5.59776752,113950.0,113940.0,0.03285138]
[1754206493013,5.57092602,113950.0,113940.0,0.03285138]
[1754206495420,4.87370176,113950.0,113940.0,0.03285138]
[1754206495631,5.55442977,113950.0,113940.0,0.03285138]
[1754206495832,5.57092614,113950.0,113940.0,0.03285138]
[1754206498537,5.56267823,113950.0,113940.0,0.03285138]
[1754206498753,5.57092641,113950.0,113940.0,0.03285138]
[1754206499367,5.55718416,113950.0,113940.0,0.03285138]
[1754206499922,5.64602172,113950.0,113940.0,0.03285138]
[1754206500947,4.8599599,113950.0,113940.0,0.03285138]
[1754206501168,5.55718416,113950.0,113940.0,0.03285138]
[1754206502089,5.57092559,113950.0,113940.0,0.03285138]
[1754206505629,5.55718416,113950.0,113940.0,0.03285138]
[1754206508674,5.57092559,113950.0,113940.0,0.03285138]
[1754206511820,5.57092552,113950.0,113940.0,0.03285138]
[1754206512898,5.57092552,113950.0,113940.0,0.03073138]
[1754206514951,5.57092553,113950.0,113940.0,0.03073138]
[1754206517793,5.5709255,113950.0,113940.0,0.03073138]
[1754206518001,6.20212013,113950.0,113940.0,0.005]
[1754206518209,0.34,113930.0,113920.0,0.02677]
[1754206518415,5.83384772,113930.0,113920.0,0.02677]
[1754206518590,5.83384772,113930.0,113920.0,0.02998]
[1754206518591,5.86068922,113930.0,113920.0,0.02998]
[1754206518800,5.88709622,113930.0,113920.0,0.02998]
[1754206519006,5.88709622,113930.0,113920.0,0.0321]
[1754206519206,5.86025472,113930.0,113920.0,0.0321]
[1754206519391,5.83384772,113930.0,113920.0,0.0325772]
[1754206519822,5.83384772,113930.0,113920.0,0.0355772]
[1754206521025,5.86003956,113930.0,113920.0,0.0385772]
[1754206521451,5.87378356,113930.0,113920.0,0.0385772]
[1754206523093,5.96262112,113930.0,113920.0,0.0385772]
[1754206523308,5.94612481,113930.0,113920.0,0.0385772]
[1754206524901,5.96259573,113930.0,113920.0,0.0385772]
[1754206525326,5.17653391,113930.0,113920.0,0.0385772]
[1754206529321,5.17651484,113930.0,113920.0,0.0385772]
[1754206530724,5.8737391,113930.0,113920.0,0.0385772]
[1754206532191,5.8737389,113930.0,113920.0,0.0385772]
[1754206532818,5.8599949,113930.0,113920.0,0.0385772]
[1754206533757,5.16277064,113930.0,113920.0,0.0385772]
[1754206533994,5.8599949,113930.0,113920.0,0.0385772]
[1754206534443,5.8864009,113930.0,113920.0,0.0385772]
[1754206534673,5.18917664,113930.0,113920.0,0.0385772]
[1754206535462,4.86292052,113930.0,113920.0,0.0385772]
[1754206538125,4.84917664,113930.0,113920.0,0.0385772]
[1754206539320,5.05509664,113930.0,113920.0,0.0385772]
[1754206539519,5.18901664,113930.0,113920.0,0.0385772]
[1754206539726,5.18901664,113930.0,113920.0,0.73580146]
[1754206540766,5.18901894,113930.0,113920.0,0.73580146]
[1754206541102,5.20276277,113930.0,113920.0,0.73580146]
[1754206544781,5.18901894,113930.0,113920.0,0.73580146]
[1754206545530,5.18901894,113930.0,113920.0,0.0385772]
[1754206545755,5.18901894,113930.0,113920.0,0.73580146]
[1754206546495,5.02869294,113930.0,113920.0,0.73580146]
[1754206546704,5.16257294,113930.0,113920.0,0.73580146]
[1754206547928,5.17631643,113930.0,113920.0,0.73580146]
[1754206548539,5.17631643,113930.0,113920.0,0.73280146]
[1754206548940,5.17631643,113930.0,113920.0,0.73680146]
[1754206549405,5.15161433,113930.0,113920.0,0.73680146]
[1754206549621,5.17634805,113930.0,113920.0,0.73680146]
[1754206549857,5.17634805,113930.0,113920.0,0.73380146]
[1754206550298,5.17634805,113930.0,113920.0,0.73680146]
[1754206550653,5.17638805,113930.0,113920.0,0.73680146]
[1754206552503,5.17638805,113930.0,113920.0,0.0395772]
[1754206552713,5.17638805,113930.0,113920.0,0.73680146]
[1754206553096,5.17638805,113930.0,113920.0,0.0395772]
[1754206553294,5.17638805,113930.0,113920.0,0.73680146]
[1754206555071,5.17638805,113930.0,113920.0,0.0395772]
[1754206555279,5.17638805,113930.0,113920.0,0.73680146]
[1754206556317,5.17638805,113930.0,113920.0,0.0395772]
[1754206556518,5.17638805,113930.0,113920.0,0.73680146]
[1754206556944,5.17638805,113930.0,113920.0,0.73468146]
[1754206557156,5.87361231,113930.0,113920.0,0.0342472]
[1754206557368,5.90045381,113930.0,113920.0,0.0074772]
[1754206557802,5.92686081,113930.0,113920.0,0.0074772]
[1754206558441,5.22963655,113930.0,113920.0,0.0074772]
[1754206558659,5.92686081,113930.0,113920.0,0.0074772]
[1754206560864,5.92686081,113930.0,113920.0,0.0361572]
[1754206562384,5.90001931,113930.0,113920.0,0.0361572]
[1754206564993,5.06887505,113930.0,113920.0,0.0390972]
[1754206565218,5.20267505,113930.0,113920.0,0.73841146]
[1754206565863,5.20267404,113930.0,113920.0,0.73841146]
[1754206569025,5.200348,113930.0,113920.0,0.73841146]
[1754206570602,5.200348,113930.0,113920.0,0.0411872]
[1754206570857,5.200348,113930.0,113920.0,0.73841146]
[1754206571261,5.200348,113930.0,113920.0,0.0411872]
[1754206571504,5.200348,113930.0,113920.0,0.73841146]
[1754206571943,5.20034639,113930.0,113920.0,0.73841146]
[1754206576170,5.20034639,113930.0,113920.0,0.0411872]
[1754206577559,5.18385899,113930.0,113920.0,0.0411872]
[1754206577764,5.20034651,113930.0,113920.0,0.0411872]
[1754206578515,5.18660302,113930.0,113920.0,0.0411872]
[1754206580633,5.18648479,113930.0,113920.0,0.73841146]
[1754206580897,5.18652479,113930.0,113920.0,0.73841146]
[1754206582145,5.18652479,113930.0,113920.0,0.0411872]
[1754206582392,5.18652479,113930.0,113920.0,0.73841146]
[1754206582639,5.20026858,113930.0,113920.0,0.73841146]
[1754206583841,5.20022858,113930.0,113920.0,0.73841146]
[1754206585181,5.06654858,113930.0,113920.0,0.73841146]
[1754206585375,5.20022858,113930.0,113920.0,0.73841146]
[1754206587918,5.06654858,113930.0,113920.0,0.73841146]
[1754206588123,5.17378158,113930.0,113920.0,0.73841146]
[1754206592356,5.17378238,113930.0,113920.0,0.73841146]
[1754206592790,5.17378238,113930.0,113920.0,0.0411872]
[1754206594696,5.17378238,113930.0,113920.0,0.73841146]
[1754206600388,5.17378238,113930.0,113920.0,0.0411872]
[1754206600910,5.17378238,113930.0,113920.0,0.73841146]
[1754206610080,5.04014238,113930.0,113920.0,0.73841146]
[1754206610242,5.17374238,113930.0,113920.0,0.73841146]
[1754206612372,5.14900859,113930.0,113920.0,0.73841146]
[1754206612542,5.17374891,113930.0,113920.0,0.73841146]
[1754206613477,5.04014891,113930.0,113920.0,0.73841146]
[1754206613634,5.17374891,113930.0,113920.0,0.73841146]
[1754206614197,5.04014891,113930.0,113920.0,0.73841146]
[1754206614453,5.17374891,113930.0,113920.0,0.73841146]
[1754206615399,5.1737493,113930.0,113920.0,0.73841146]
[1754206616638,5.0401493,113930.0,113920.0,0.73841146]
[1754206616868,5.1737493,113930.0,113920.0,0.73841146]
[1754206617375,5.17375075,113930.0,113920.0,0.73841146]
[1754206618606,4.97851579,113930.0,113920.0,0.73841146]
[1754206620126,0.06467779,113930.0,113920.0,0.87201146]
[1754206620344,0.04818279,113930.0,113920.0,0.87201146]
[1754206620568,0.374439,113930.0,113920.0,0.87201146]
[1754206620831,0.034439,113930.0,113920.0,0.87201146]
[1754206621054,0.00824716,113930.0,113920.0,0.87201146]
[1754206623024,0.34,113940.0,113920.0,0.87201146]
[1754206623206,0.3482416,113940.0,113930.0,0.83082426]
[1754206623458,0.3482416,113940.0,113930.0,0.86212426]
[1754206623667,0.36198387,113940.0,113930.0,0.86212426]
[1754206626050,0.36198387,113940.0,113930.0,0.86712426]
[1754206627016,0.36198387,113940.0,113930.0,0.86912426]
[1754206628265,0.36198387,113940.0,113930.0,0.86712426]
[1754206628522,0.02198387,113940.0,113930.0,0.87112426]
[1754206628838,0.36197421,113940.0,113930.0,0.1739]
[1754206629020,0.36197421,113940.0,113930.0,0.87112426]
[1754206630672,0.02197421,113940.0,113930.0,0.87112426]
[1754206631018,0.01374227,113940.0,113930.0,1.56834852]
[1754206631418,0.01374227,113940.0,113930.0,0.87112426]
[1754206637837,0.01374227,113940.0,113930.0,0.1739]
[1754206638040,0.01374227,113940.0,113930.0,0.87112426]
[1754206642689,4.440238,113950.0,113930.0,0.87112426]
[1754206642895,0.34822172,113950.0,113940.0,0.85993426]
[1754206643104,0.34822172,113950.0,113940.0,0.86208426]
[1754206644765,0.00822172,113950.0,113940.0,0.86608426]
[1754206645458,0.0219626,113950.0,113940.0,0.86608426]
[1754206646458,0.02196653,113950.0,113940.0,0.86608426]
[1754206647357,0.01374088,113950.0,113940.0,0.86608426]
[1754206647981,0.01374088,113950.0,113940.0,0.87108426]
[1754206648939,0.01374088,113950.0,113940.0,1.56830852]
[1754206649142,0.13356,113970.0,113940.0,1.56830852]
[1754206649367,0.34,113960.0,113950.0,0.83110426]
[1754206649576,0.34,113960.0,113950.0,0.86330426]
[1754206649826,0.34823062,113960.0,113950.0,0.86330426]
[1754206650261,0.34823062,113960.0,113950.0,0.16608]
[1754206650262,0.36197006,113960.0,113950.0,0.16608]
[1754206650706,0.36197006,113960.0,113950.0,0.86330426]
[1754206651300,0.36197006,113960.0,113950.0,0.86730426]
[1754206651473,0.36197006,113960.0,113950.0,0.87030426]
[1754206652080,0.36197006,113960.0,113950.0,0.86730426]
[1754206653176,0.36197006,113960.0,113950.0,0.86330426]
[1754206653498,0.36197006,113960.0,113950.0,0.16608]
[1754206653715,0.36197006,113960.0,113950.0,0.86330426]
[1754206654494,0.36197006,113960.0,113950.0,0.17308]
[1754206654968,0.36197006,113960.0,113950.0,0.87030426]
[1754206656156,0.36197006,113960.0,113950.0,0.17308]
[1754206656359,0.36197006,113960.0,113950.0,0.87030426]
[1754206656722,0.36197006,113960.0,113950.0,0.0442]
[1754206657157,0.36197006,113960.0,113950.0,0.74142426]
[1754206657600,0.36197006,113960.0,113950.0,0.0442]
[1754206658033,0.36197234,113960.0,113950.0,0.0442]
[1754206659951,0.36197234,113960.0,113950.0,0.74142426]
[1754206667868,1.0591966,113960.0,113950.0,0.0442]
[1754206671009,0.02197234,113960.0,113950.0,0.0442]
[1754206672640,0.7191966,113960.0,113950.0,0.0442]
[1754206672853,0.70545716,113960.0,113950.0,0.0442]
[1754206674050,0.0082329,113960.0,113950.0,0.0442]
[1754206674262,0.70545716,113960.0,113950.0,0.0442]
[1754206675383,0.0082329,113960.0,113950.0,0.0442]
[1754206675592,0.71919667,113960.0,113950.0,0.0442]
[1754206675812,0.71919667,113960.0,113950.0,0.04424]
[1754206676636,0.02197241,113960.0,113950.0,0.04424]
[1754206676834,0.71919667,113960.0,113950.0,0.04424]
[1754206678251,0.02197241,113960.0,113950.0,0.04424]
[1754206678698,0.0082329,113960.0,113950.0,0.04424]
[1754206679789,0.70545716,113960.0,113950.0,0.04424]
[1754206680215,0.0082329,113960.0,113950.0,0.04424]
[1754206681618,0.02197238,113960.0,113950.0,0.04424]
[1754206683091,0.71919664,113960.0,113950.0,0.04424]
[1754206684462,0.02197238,113960.0,113950.0,0.04424]
[1754206684819,0.70545716,113960.0,113950.0,0.04424]
[1754206686006,0.00824517,113960.0,113950.0,0.04424]
[1754206686222,0.70546943,113960.0,113950.0,0.04424]
[1754206689150,0.7192089,113960.0,113950.0,0.04424]
[1754206691830,0.02198464,113960.0,113950.0,0.04424]
[1754206692067,0.7192089,113960.0,113950.0,0.04424]
[1754206692461,0.02198468,113960.0,113950.0,0.04424]
[1754206692665,0.71920894,113960.0,113950.0,0.04424]
[1754206695821,0.50088247,113960.0,113950.0,0.04424]
[1754206696230,0.51462242,113960.0,113950.0,0.04424]
[1754206696754,0.71096421,113960.0,113950.0,0.04424]
[1754206699279,0.01373995,113960.0,113950.0,0.04424]
[1754206699880,0.71096421,113960.0,113950.0,0.04424]